[Event "Titled Tuesday Blitz May 23 Early 2023"]
[White "Nugumanov, Bakhtiyar"]
[Black "Kohler, Aran"]
[WhiteFideId "13701797"]
[BlackFideId "1002856"]
[WhiteElo "2209"]
[BlackElo "2399"]
[Result "1-0"]
[Round "05"]
[TimeControl "180+2"]
[Date "2023.05.23"]
[WhiteClock "0:00:06"]
[BlackClock "0:00:00"]

1. Nf3 {[%clk 0:02:54]}  Nf6 {[%clk 0:02:57]} 2. c4 {[%clk 0:02:53]}  d6 {[%clk 0:02:55]} 3. g3 {[%clk 0:02:53]}  e5 {[%clk 0:02:54]} 4. d3 {[%clk 0:02:53]}  Nc6 {[%clk 0:02:54]} 5. Bg2 {[%clk 0:02:54]}  Be7 {[%clk 0:02:54]} 6. O-O {[%clk 0:02:53]}  O-O {[%clk 0:02:54]} 7. Nc3 {[%clk 0:02:50]}  Bg4 {[%clk 0:02:50]} 8. h3 {[%clk 0:02:49]}  Bh5 {[%clk 0:02:48]} 9. Rb1 {[%clk 0:02:42]}  Rb8 {[%clk 0:02:47]} 10. b4 {[%clk 0:02:42]}  Qd7 {[%clk 0:02:46]} 11. b5 {[%clk 0:02:41]}  Nd8 {[%clk 0:02:46]} 12. a4 {[%clk 0:02:36]}  Ne6 {[%clk 0:02:43]} 13. a5 {[%clk 0:02:09]}  Bxf3 {[%clk 0:02:36]} 14. Bxf3 {[%clk 0:02:08]}  Nd4 {[%clk 0:02:36]} 15. Bg2 {[%clk 0:02:08]}  Rfe8 {[%clk 0:02:21]} 16. e3 {[%clk 0:02:08]}  Ne6 {[%clk 0:02:20]} 17. d4 {[%clk 0:02:08]}  exd4 {[%clk 0:02:15]} 18. exd4 {[%clk 0:02:09]}  c6 {[%clk 0:02:05]} 19. Be3 {[%clk 0:02:02]}  c5 {[%clk 0:02:01]} 20. d5 {[%clk 0:01:51]}  Nd8 {[%clk 0:02:00]} 21. Qd3 {[%clk 0:01:45]}  g6 {[%clk 0:01:52]} 22. Bg5 {[%clk 0:01:42]}  Qf5 {[%clk 0:01:31]} 23. Qxf5 {[%clk 0:01:22]}  gxf5 {[%clk 0:01:31]} 24. Rfe1 {[%clk 0:01:21]}  Kg7 {[%clk 0:01:16]} 25. Bf1 {[%clk 0:01:16]}  h6 {[%clk 0:01:05]} 26. Bh4 {[%clk 0:01:16]}  b6 {[%clk 0:00:59]} 27. a6 {[%clk 0:01:05]}  Ng8 {[%clk 0:00:59]} 28. Bd3 {[%clk 0:01:03]}  Rc8 {[%clk 0:00:31]} 29. Bxf5 {[%clk 0:01:02]}  Rc7 {[%clk 0:00:31]} 30. Re2 {[%clk 0:00:52]}  f6 {[%clk 0:00:30]} 31. Rbe1 {[%clk 0:00:51]}  Nf7 {[%clk 0:00:31]} 32. f4 {[%clk 0:00:46]}  Rf8 {[%clk 0:00:20]} 33. Be6 {[%clk 0:00:39]}  Bd8 {[%clk 0:00:19]} 34. g4 {[%clk 0:00:38]}  Re7 {[%clk 0:00:17]} 35. Ne4 {[%clk 0:00:28]}  Rc7 {[%clk 0:00:16]} 36. Bxf7 {[%clk 0:00:28]}  Kxf7 {[%clk 0:00:15]} 37. Nxd6+ {[%clk 0:00:28]}  Kg6 {[%clk 0:00:16]} 38. f5+ {[%clk 0:00:24]}  Kh7 {[%clk 0:00:14]} 39. Nb7 {[%clk 0:00:19]}  Rcf7 {[%clk 0:00:12]} 40. Re8 {[%clk 0:00:17]}  Rxe8 {[%clk 0:00:11]} 41. Rxe8 {[%clk 0:00:17]}  Be7 {[%clk 0:00:11]} 42. d6 {[%clk 0:00:17]}  Bf8 {[%clk 0:00:11]} 43. Ra8 {[%clk 0:00:18]}  Kg7 {[%clk 0:00:09]} 44. Bg3 {[%clk 0:00:13]}  Rd7 {[%clk 0:00:08]} 45. Rxa7 {[%clk 0:00:13]}  h5 {[%clk 0:00:07]} 46. Ra8 {[%clk 0:00:12]}  hxg4 {[%clk 0:00:07]} 47. hxg4 {[%clk 0:00:12]}  Nh6 {[%clk 0:00:07]} 48. Rd8 {[%clk 0:00:07]}  Rf7 {[%clk 0:00:02]} 49. d7 {[%clk 0:00:06]}  Nxg4 {[%clk 0:00:02]} 50. Rxf8 {[%clk 0:00:06]}  Rxf8 {[%clk 0:00:00]} 51. a7 {[%clk 0:00:06]} 1-0


[Site "https://www.chess.com"]

[Event "Titled Tuesday Blitz May 23 Early 2023"]
[White "Guevara Sanchez, Erick Marvin"]
[Black "Mogirzan, Matei-Valeriu"]
[WhiteFideId "6700136"]
[BlackFideId "1257455"]
[WhiteElo "2040"]
[BlackElo "1733"]
[Result "0-1"]
[Round "05"]
[TimeControl "180+2"]
[Date "2023.05.23"]
[WhiteClock "0:00:00"]
[BlackClock "0:00:51"]

1. e4 {[%clk 0:03:00]}  e5 {[%clk 0:02:57]} 2. Nf3 {[%clk 0:02:59]}  Nf6 {[%clk 0:02:57]} 3. Nxe5 {[%clk 0:02:58]}  Nc6 {[%clk 0:02:56]} 4. Nxc6 {[%clk 0:02:56]}  dxc6 {[%clk 0:02:57]} 5. Nc3 {[%clk 0:02:54]}  Bc5 {[%clk 0:02:56]} 6. d3 {[%clk 0:02:54]}  Ng4 {[%clk 0:02:54]} 7. Be3 {[%clk 0:02:54]}  Nxe3 {[%clk 0:02:53]} 8. fxe3 {[%clk 0:02:54]}  Bxe3 {[%clk 0:02:54]} 9. Qf3 {[%clk 0:02:53]}  Qg5 {[%clk 0:02:54]} 10. Be2 {[%clk 0:02:47]}  Bd2+ {[%clk 0:02:51]} 11. Kf2 {[%clk 0:02:42]}  Bxc3 {[%clk 0:02:52]} 12. bxc3 {[%clk 0:02:42]}  Qc5+ {[%clk 0:02:52]} 13. d4 {[%clk 0:02:41]}  Qg5 {[%clk 0:02:50]} 14. h4 {[%clk 0:02:40]}  Qe7 {[%clk 0:02:48]} 15. Raf1 {[%clk 0:02:30]}  Be6 {[%clk 0:02:45]} 16. Rb1 {[%clk 0:02:28]}  O-O-O {[%clk 0:02:41]} 17. Rb2 {[%clk 0:02:22]}  f5 {[%clk 0:02:40]} 18. e5 {[%clk 0:02:06]}  Bd5 {[%clk 0:02:37]} 19. Qe3 {[%clk 0:02:05]}  f4 {[%clk 0:02:36]} 20. Qc1 {[%clk 0:02:03]}  g5 {[%clk 0:02:32]} 21. c4 {[%clk 0:01:48]}  Be4 {[%clk 0:02:27]} 22. c3 {[%clk 0:01:46]}  Qa3 {[%clk 0:02:18]} 23. Bf3 {[%clk 0:01:39]}  Bxf3 {[%clk 0:02:10]} 24. gxf3 {[%clk 0:01:37]}  Qe7 {[%clk 0:02:03]} 25. Qb1 {[%clk 0:01:30]}  b6 {[%clk 0:02:02]} 26. Qf5+ {[%clk 0:01:29]}  Kb7 {[%clk 0:02:02]} 27. Qxg5 {[%clk 0:01:27]}  Qa3 {[%clk 0:02:01]} 28. Rc2 {[%clk 0:01:18]}  Qa4 {[%clk 0:01:57]} 29. Qf5 {[%clk 0:01:15]}  Qxc4 {[%clk 0:01:53]} 30. Qe4 {[%clk 0:01:14]}  Rhf8 {[%clk 0:01:48]} 31. Re1 {[%clk 0:01:08]}  Rd5 {[%clk 0:01:38]} 32. e6 {[%clk 0:01:06]}  Re8 {[%clk 0:01:38]} 33. e7 {[%clk 0:01:00]}  Rd7 {[%clk 0:01:38]} 34. Qxh7 {[%clk 0:00:58]}  c5 {[%clk 0:01:28]} 35. Qe4+ {[%clk 0:00:51]}  Kb8 {[%clk 0:01:22]} 36. h5 {[%clk 0:00:38]}  Rdxe7 {[%clk 0:01:17]} 37. Qxe7 {[%clk 0:00:27]}  Rxe7 {[%clk 0:01:18]} 38. Rxe7 {[%clk 0:00:26]}  cxd4 {[%clk 0:01:19]} 39. Re4 {[%clk 0:00:17]}  Qd3 {[%clk 0:01:15]} 40. Ree2 {[%clk 0:00:11]}  dxc3 {[%clk 0:01:06]} 41. Kg1 {[%clk 0:00:10]}  Qxf3 {[%clk 0:01:04]} 42. Rh2 {[%clk 0:00:10]}  Qg3+ {[%clk 0:00:56]} 43. Rhg2 {[%clk 0:00:04]}  Qe1+ {[%clk 0:00:55]} 44. Kh2 {[%clk 0:00:04]}  Qh4+ {[%clk 0:00:55]} 45. Kg1 {[%clk 0:00:04]}  Qxh5 {[%clk 0:00:55]} 46. Rxc3 {[%clk 0:00:04]}  Qd1+ {[%clk 0:00:53]} 47. Kh2 {[%clk 0:00:05]}  f3 {[%clk 0:00:53]} 48. Rg8+ {[%clk 0:00:03]}  Kb7 {[%clk 0:00:52]} 49. Re3 {[%clk 0:00:00]}  f2 {[%clk 0:00:51]} 0-1


[Site "https://www.chess.com"]

[Event "Titled Tuesday Blitz May 23 Early 2023"]
[White "Davidson, Kevin"]
[Black "Winkels, Marcel"]
[WhiteFideId "2056810"]
[BlackFideId "1003887"]
[WhiteElo "2151"]
[BlackElo "1900"]
[Result "1-0"]
[Round "05"]
[TimeControl "180+2"]
[Date "2023.05.23"]
[WhiteClock "0:00:38"]
[BlackClock "0:00:00"]

1. e4 {[%clk 0:03:00]}  Nf6 {[%clk 0:03:00]} 2. e5 {[%clk 0:02:58]}  Nd5 {[%clk 0:03:00]} 3. c4 {[%clk 0:02:59]}  Nb6 {[%clk 0:02:59]} 4. d4 {[%clk 0:02:59]}  d6 {[%clk 0:02:56]} 5. exd6 {[%clk 0:03:00]}  exd6 {[%clk 0:02:52]} 6. Nc3 {[%clk 0:03:00]}  Be7 {[%clk 0:02:51]} 7. Nf3 {[%clk 0:03:00]}  O-O {[%clk 0:02:50]} 8. Be2 {[%clk 0:03:00]}  Bg4 {[%clk 0:02:47]} 9. O-O {[%clk 0:02:59]}  Nc6 {[%clk 0:02:45]} 10. b3 {[%clk 0:02:58]}  d5 {[%clk 0:02:42]} 11. c5 {[%clk 0:02:58]}  Nd7 {[%clk 0:02:41]} 12. Nxd5 {[%clk 0:02:39]}  Bxf3 {[%clk 0:02:16]} 13. Bxf3 {[%clk 0:02:38]}  Bg5 {[%clk 0:02:05]} 14. b4 {[%clk 0:02:23]}  Bxc1 {[%clk 0:02:02]} 15. Rxc1 {[%clk 0:02:22]}  Nf6 {[%clk 0:02:01]} 16. Nxf6+ {[%clk 0:02:15]}  Qxf6 {[%clk 0:01:58]} 17. Bxc6 {[%clk 0:01:59]}  bxc6 {[%clk 0:01:54]} 18. Qd2 {[%clk 0:01:47]}  Rad8 {[%clk 0:01:39]} 19. Rfd1 {[%clk 0:01:44]}  Rd5 {[%clk 0:01:00]} 20. Rc3 {[%clk 0:01:43]}  Rfd8 {[%clk 0:00:52]} 21. Rd3 {[%clk 0:01:43]}  h6 {[%clk 0:00:49]} 22. Qe3 {[%clk 0:01:39]}  Qg6 {[%clk 0:00:47]} 23. Qf4 {[%clk 0:01:11]}  R8d7 {[%clk 0:00:42]} 24. h3 {[%clk 0:01:05]}  Rg5 {[%clk 0:00:41]} 25. Rg3 {[%clk 0:00:58]}  Rxg3 {[%clk 0:00:35]} 26. fxg3 {[%clk 0:00:55]}  Qc2 {[%clk 0:00:34]} 27. Qd2 {[%clk 0:00:55]}  Qc4 {[%clk 0:00:31]} 28. Kh2 {[%clk 0:00:53]}  Qd5 {[%clk 0:00:28]} 29. a3 {[%clk 0:00:51]}  Re7 {[%clk 0:00:27]} 30. Re1 {[%clk 0:00:47]}  Re6 {[%clk 0:00:17]} 31. Rxe6 {[%clk 0:00:45]}  Qxe6 {[%clk 0:00:16]} 32. Qf4 {[%clk 0:00:45]}  Qd7 {[%clk 0:00:15]} 33. Qe5 {[%clk 0:00:44]}  f6 {[%clk 0:00:14]} 34. Qe4 {[%clk 0:00:44]}  Kh8 {[%clk 0:00:11]} 35. a4 {[%clk 0:00:43]}  Qd5 {[%clk 0:00:10]} 36. Qxd5 {[%clk 0:00:43]}  cxd5 {[%clk 0:00:10]} 37. b5 {[%clk 0:00:43]}  Kg8 {[%clk 0:00:10]} 38. g4 {[%clk 0:00:38]}  Kf7 {[%clk 0:00:09]} 39. Kg3 {[%clk 0:00:38]}  Ke7 {[%clk 0:00:09]} 40. Kf4 {[%clk 0:00:38]}  Kd7 {[%clk 0:00:00]} 41. Kf5 {[%clk 0:00:38]} 1-0


[Site "https://www.chess.com"]

[Event "Titled Tuesday Blitz May 23 Early 2023"]
[White "Hinds, Nathan"]
[Black "Saim, Mohamed Ilias"]
[WhiteFideId "7400730"]
[BlackFideId "7900465"]
[WhiteElo "2001"]
[BlackElo "2063"]
[Result "1-0"]
[Round "05"]
[TimeControl "180+2"]
[Date "2023.05.23"]
[WhiteClock "0:00:06"]
[BlackClock "0:00:00"]

1. Nf3 {[%clk 0:03:00]}  Nf6 {[%clk 0:02:57]} 2. c4 {[%clk 0:02:59]}  c5 {[%clk 0:02:54]} 3. g3 {[%clk 0:02:58]}  b6 {[%clk 0:02:54]} 4. Bg2 {[%clk 0:02:58]}  Bb7 {[%clk 0:02:54]} 5. Nc3 {[%clk 0:02:58]}  e6 {[%clk 0:02:47]} 6. d4 {[%clk 0:02:55]}  cxd4 {[%clk 0:02:43]} 7. Qxd4 {[%clk 0:02:56]}  a6 {[%clk 0:02:39]} 8. O-O {[%clk 0:02:56]}  Be7 {[%clk 0:02:37]} 9. Rd1 {[%clk 0:02:55]}  d6 {[%clk 0:02:35]} 10. Qd3 {[%clk 0:02:42]}  O-O {[%clk 0:02:33]} 11. Bg5 {[%clk 0:02:42]}  Nbd7 {[%clk 0:02:32]} 12. Bxf6 {[%clk 0:02:34]}  Nxf6 {[%clk 0:02:30]} 13. Rac1 {[%clk 0:02:22]}  Qc7 {[%clk 0:02:26]} 14. b3 {[%clk 0:02:22]}  Rfd8 {[%clk 0:02:25]} 15. h3 {[%clk 0:02:03]}  Rac8 {[%clk 0:02:24]} 16. Qe3 {[%clk 0:01:58]}  Qc5 {[%clk 0:02:15]} 17. Qxc5 {[%clk 0:01:51]}  dxc5 {[%clk 0:02:13]} 18. Na4 {[%clk 0:01:43]}  b5 {[%clk 0:02:07]} 19. Nc3 {[%clk 0:01:19]}  Rxd1+ {[%clk 0:02:03]} 20. Rxd1 {[%clk 0:01:19]}  Rd8 {[%clk 0:02:03]} 21. Rxd8+ {[%clk 0:01:19]}  Bxd8 {[%clk 0:02:03]} 22. Ne5 {[%clk 0:01:17]}  Bxg2 {[%clk 0:02:02]} 23. Kxg2 {[%clk 0:01:17]}  bxc4 {[%clk 0:01:52]} 24. Nxc4 {[%clk 0:01:16]}  Nd5 {[%clk 0:01:49]} 25. Na4 {[%clk 0:01:15]}  Be7 {[%clk 0:01:41]} 26. Ne5 {[%clk 0:01:15]}  Nb4 {[%clk 0:01:35]} 27. a3 {[%clk 0:01:10]}  Nc2 {[%clk 0:01:35]} 28. Nc4 {[%clk 0:01:08]}  Nd4 {[%clk 0:01:31]} 29. Ne5 {[%clk 0:00:48]}  Nxb3 {[%clk 0:01:23]} 30. Kf3 {[%clk 0:00:45]}  Kf8 {[%clk 0:01:18]} 31. Ke3 {[%clk 0:00:43]}  f6 {[%clk 0:01:17]} 32. Nd3 {[%clk 0:00:40]}  Ke8 {[%clk 0:01:12]} 33. Nf4 {[%clk 0:00:38]}  Kd7 {[%clk 0:01:06]} 34. Kd3 {[%clk 0:00:38]}  e5 {[%clk 0:01:01]} 35. Nd5 {[%clk 0:00:36]}  c4+ {[%clk 0:00:45]} 36. Kxc4 {[%clk 0:00:34]}  Nc1 {[%clk 0:00:45]} 37. e3 {[%clk 0:00:32]}  Bxa3 {[%clk 0:00:44]} 38. Nac3 {[%clk 0:00:27]}  Bd6 {[%clk 0:00:33]} 39. Nb6+ {[%clk 0:00:27]}  Kc6 {[%clk 0:00:33]} 40. Nba4 {[%clk 0:00:28]}  f5 {[%clk 0:00:23]} 41. f3 {[%clk 0:00:27]}  g5 {[%clk 0:00:23]} 42. e4 {[%clk 0:00:27]}  fxe4 {[%clk 0:00:20]} 43. fxe4 {[%clk 0:00:28]}  h5 {[%clk 0:00:20]} 44. Nb2 {[%clk 0:00:28]}  a5 {[%clk 0:00:18]} 45. Nba4 {[%clk 0:00:28]}  Bb4 {[%clk 0:00:18]} 46. Nd5 {[%clk 0:00:27]}  Ne2 {[%clk 0:00:17]} 47. g4 {[%clk 0:00:26]}  hxg4 {[%clk 0:00:17]} 48. hxg4 {[%clk 0:00:27]}  Ng1 {[%clk 0:00:17]} 49. Nb2 {[%clk 0:00:18]}  Nf3 {[%clk 0:00:16]} 50. Nd3 {[%clk 0:00:16]}  Bd6 {[%clk 0:00:12]} 51. Nf6 {[%clk 0:00:09]}  a4 {[%clk 0:00:11]} 52. Nc1 {[%clk 0:00:03]}  a3 {[%clk 0:00:11]} 53. Na2 {[%clk 0:00:03]}  Nh2 {[%clk 0:00:11]} 54. Kb3 {[%clk 0:00:04]}  Kc5 {[%clk 0:00:09]} 55. Kc3 {[%clk 0:00:05]}  Kb5 {[%clk 0:00:08]} 56. Kd3 {[%clk 0:00:06]}  Ka4 {[%clk 0:00:07]} 57. Ne8 {[%clk 0:00:06]}  Be7 {[%clk 0:00:05]} 58. Nc7 {[%clk 0:00:06]}  Kb3 {[%clk 0:00:05]} 59. Nd5 {[%clk 0:00:07]}  Kxa2 {[%clk 0:00:02]} 60. Nxe7 {[%clk 0:00:07]}  Kb2 {[%clk 0:00:03]} 61. Nd5 {[%clk 0:00:04]}  a2 {[%clk 0:00:02]} 62. Nb4 {[%clk 0:00:05]}  a1=Q {[%clk 0:00:00]} 63. Kc4 {[%clk 0:00:06]} 1-0


[Site "https://www.chess.com"]

[Event "Titled Tuesday Blitz May 23 Early 2023"]
[White "Larina, Maria"]
[Black "chessjazda"]
[WhiteFideId "24113182"]
[WhiteElo "1848"]
[BlackElo "2307"]
[Result "1-0"]
[Round "05"]
[TimeControl "180+2"]
[Date "2023.05.23"]
[WhiteClock "0:00:28"]
[BlackClock "0:00:20"]

1. e4 {[%clk 0:03:00]}  d6 {[%clk 0:02:58]} 2. d4 {[%clk 0:03:00]}  Nf6 {[%clk 0:02:58]} 3. Nc3 {[%clk 0:03:00]}  g6 {[%clk 0:02:57]} 4. f3 {[%clk 0:02:58]}  h5 {[%clk 0:02:53]} 5. Be3 {[%clk 0:02:58]}  h4 {[%clk 0:02:53]} 6. Qd2 {[%clk 0:02:56]}  Nc6 {[%clk 0:02:52]} 7. O-O-O {[%clk 0:02:53]}  a6 {[%clk 0:02:50]} 8. Kb1 {[%clk 0:02:23]}  e5 {[%clk 0:02:48]} 9. dxe5 {[%clk 0:02:19]}  Nxe5 {[%clk 0:02:48]} 10. Nd5 {[%clk 0:02:02]}  Nxd5 {[%clk 0:02:45]} 11. exd5 {[%clk 0:01:51]}  Bf5 {[%clk 0:02:45]} 12. f4 {[%clk 0:01:41]}  Ng4 {[%clk 0:02:42]} 13. Bd4 {[%clk 0:01:39]}  Rg8 {[%clk 0:02:41]} 14. Re1+ {[%clk 0:01:36]}  Kd7 {[%clk 0:02:41]} 15. Nf3 {[%clk 0:01:30]}  Bh6 {[%clk 0:02:36]} 16. Ng5 {[%clk 0:01:27]}  Qf8 {[%clk 0:02:27]} 17. h3 {[%clk 0:01:20]}  Bxg5 {[%clk 0:02:24]} 18. hxg4 {[%clk 0:01:17]}  Bxg4 {[%clk 0:02:21]} 19. fxg5 {[%clk 0:01:16]}  Re8 {[%clk 0:02:22]} 20. Bc4 {[%clk 0:01:13]}  Kc8 {[%clk 0:02:18]} 21. Bf6 {[%clk 0:01:12]}  Bf5 {[%clk 0:02:10]} 22. Bd3 {[%clk 0:01:11]}  Bg4 {[%clk 0:02:09]} 23. Rxh4 {[%clk 0:01:06]}  Bd7 {[%clk 0:02:08]} 24. Rhe4 {[%clk 0:01:01]}  Rxe4 {[%clk 0:02:07]} 25. Rxe4 {[%clk 0:00:59]}  Kb8 {[%clk 0:02:07]} 26. Qb4 {[%clk 0:00:56]}  Ka8 {[%clk 0:02:05]} 27. a3 {[%clk 0:00:52]}  Qc8 {[%clk 0:02:04]} 28. Qe1 {[%clk 0:00:50]}  Bf5 {[%clk 0:01:50]} 29. Re3 {[%clk 0:00:50]}  Bg4 {[%clk 0:01:01]} 30. Re7 {[%clk 0:00:48]}  Bd7 {[%clk 0:00:57]} 31. Rxf7 {[%clk 0:00:44]}  Re8 {[%clk 0:00:57]} 32. Re7 {[%clk 0:00:44]}  Rf8 {[%clk 0:00:57]} 33. Bxg6 {[%clk 0:00:43]}  b6 {[%clk 0:00:53]} 34. Bd3 {[%clk 0:00:42]}  Ka7 {[%clk 0:00:52]} 35. Qc3 {[%clk 0:00:35]}  a5 {[%clk 0:00:51]} 36. g6 {[%clk 0:00:33]}  Re8 {[%clk 0:00:34]} 37. g7 {[%clk 0:00:28]}  Rxe7 {[%clk 0:00:33]} 38. Bxe7 {[%clk 0:00:29]}  Kb7 {[%clk 0:00:20]} 39. Bf8 {[%clk 0:00:28]} 1-0


[Site "https://www.chess.com"]

[Event "Titled Tuesday Blitz May 23 Early 2023"]
[White "Acikel, Mert"]
[Black "stratacticos"]
[WhiteFideId "12956465"]
[WhiteElo "2097"]
[BlackElo "1895"]
[Result "1-0"]
[Round "05"]
[TimeControl "180+2"]
[Date "2023.05.23"]
[WhiteClock "0:00:11"]
[BlackClock "0:00:00"]

1. e4 {[%clk 0:02:58]}  c5 {[%clk 0:02:59]} 2. Nf3 {[%clk 0:02:58]}  Nc6 {[%clk 0:02:50]} 3. Bb5 {[%clk 0:02:56]}  Na5 {[%clk 0:02:48]} 4. O-O {[%clk 0:02:53]}  a6 {[%clk 0:02:47]} 5. Be2 {[%clk 0:02:54]}  b5 {[%clk 0:02:46]} 6. d4 {[%clk 0:02:51]}  cxd4 {[%clk 0:02:46]} 7. Nxd4 {[%clk 0:02:51]}  e5 {[%clk 0:02:45]} 8. Nf3 {[%clk 0:02:47]}  Nc6 {[%clk 0:02:44]} 9. Be3 {[%clk 0:02:46]}  Nf6 {[%clk 0:02:41]} 10. Nbd2 {[%clk 0:02:44]}  d5 {[%clk 0:02:41]} 11. exd5 {[%clk 0:02:40]}  Nxd5 {[%clk 0:02:41]} 12. Bg5 {[%clk 0:02:38]}  Be7 {[%clk 0:02:40]} 13. Bxe7 {[%clk 0:02:38]}  Ncxe7 {[%clk 0:02:30]} 14. Nxe5 {[%clk 0:02:24]}  Qc7 {[%clk 0:02:26]} 15. Ndf3 {[%clk 0:02:19]}  Be6 {[%clk 0:02:21]} 16. c4 {[%clk 0:02:08]}  bxc4 {[%clk 0:02:13]} 17. Qa4+ {[%clk 0:02:07]}  Kf8 {[%clk 0:02:06]} 18. Qxc4 {[%clk 0:02:03]}  Qxc4 {[%clk 0:02:02]} 19. Bxc4 {[%clk 0:02:04]}  f6 {[%clk 0:01:49]} 20. Nd3 {[%clk 0:01:54]}  Nf4 {[%clk 0:01:45]} 21. Nxf4 {[%clk 0:01:47]}  Bxc4 {[%clk 0:01:45]} 22. Rfe1 {[%clk 0:01:43]}  Kf7 {[%clk 0:01:44]} 23. b3 {[%clk 0:01:41]}  Bb5 {[%clk 0:01:31]} 24. Rac1 {[%clk 0:01:28]}  Rac8 {[%clk 0:01:30]} 25. h3 {[%clk 0:01:28]}  g5 {[%clk 0:01:22]} 26. Nh5 {[%clk 0:01:12]}  Rxc1 {[%clk 0:00:56]} 27. Rxc1 {[%clk 0:01:12]}  Kg6 {[%clk 0:00:52]} 28. Ng3 {[%clk 0:01:10]}  h5 {[%clk 0:00:50]} 29. Rc7 {[%clk 0:00:59]}  Nd5 {[%clk 0:00:49]} 30. Rc5 {[%clk 0:00:56]}  Nf4 {[%clk 0:00:38]} 31. Nd4 {[%clk 0:00:49]}  Bd7 {[%clk 0:00:32]} 32. b4 {[%clk 0:00:32]}  Nd3 {[%clk 0:00:28]} 33. Rd5 {[%clk 0:00:27]}  Bc8 {[%clk 0:00:20]} 34. a3 {[%clk 0:00:27]}  Re8 {[%clk 0:00:19]} 35. Nf3 {[%clk 0:00:17]}  Nf4 {[%clk 0:00:14]} 36. Rd6 {[%clk 0:00:15]}  h4 {[%clk 0:00:12]} 37. Nf1 {[%clk 0:00:11]}  Ne2+ {[%clk 0:00:11]} 38. Kh2 {[%clk 0:00:11]}  g4 {[%clk 0:00:09]} 39. hxg4 {[%clk 0:00:11]}  Bxg4 {[%clk 0:00:09]} 40. Nxh4+ {[%clk 0:00:11]}  Kg5 {[%clk 0:00:00]} 41. g3 {[%clk 0:00:11]} 1-0


[Site "https://www.chess.com"]

[Event "Titled Tuesday Blitz May 23 Early 2023"]
[White "Martin, Lewis"]
[Black "Sokolov, Andrei"]
[WhiteFideId "410551"]
[BlackFideId "11600306"]
[WhiteElo "2145"]
[BlackElo "2473"]
[Result "1-0"]
[Round "05"]
[TimeControl "180+2"]
[Date "2023.05.23"]
[WhiteClock "0:00:44"]
[BlackClock "0:00:00"]

1. e4 {[%clk 0:02:34]}  c6 {[%clk 0:02:59]} 2. b3 {[%clk 0:02:32]}  d5 {[%clk 0:02:57]} 3. Bb2 {[%clk 0:02:31]}  dxe4 {[%clk 0:02:37]} 4. Nc3 {[%clk 0:02:31]}  Nf6 {[%clk 0:02:32]} 5. Nge2 {[%clk 0:02:29]}  Bf5 {[%clk 0:02:17]} 6. Ng3 {[%clk 0:02:30]}  Bg6 {[%clk 0:02:15]} 7. Qe2 {[%clk 0:02:30]}  e6 {[%clk 0:02:03]} 8. Ncxe4 {[%clk 0:02:26]}  Be7 {[%clk 0:01:49]} 9. O-O-O {[%clk 0:02:24]}  Nbd7 {[%clk 0:01:46]} 10. f4 {[%clk 0:02:19]}  Nxe4 {[%clk 0:01:31]} 11. Nxe4 {[%clk 0:02:19]}  Nf6 {[%clk 0:01:24]} 12. Ng3 {[%clk 0:01:55]}  Qa5 {[%clk 0:00:56]} 13. Kb1 {[%clk 0:01:52]}  h5 {[%clk 0:00:44]} 14. h4 {[%clk 0:01:38]}  O-O-O {[%clk 0:00:38]} 15. Bc3 {[%clk 0:01:27]}  Qc7 {[%clk 0:00:32]} 16. Be5 {[%clk 0:01:24]}  Bd6 {[%clk 0:00:27]} 17. d4 {[%clk 0:01:21]}  Nd5 {[%clk 0:00:14]} 18. Qf3 {[%clk 0:01:17]}  f6 {[%clk 0:00:12]} 19. Bxd6 {[%clk 0:01:15]}  Qxd6 {[%clk 0:00:13]} 20. f5 {[%clk 0:01:05]}  exf5 {[%clk 0:00:13]} 21. Bc4 {[%clk 0:01:01]}  f4 {[%clk 0:00:11]} 22. Ne2 {[%clk 0:00:57]}  Rhe8 {[%clk 0:00:08]} 23. Bxd5 {[%clk 0:00:56]}  cxd5 {[%clk 0:00:06]} 24. Nxf4 {[%clk 0:00:55]}  Be4 {[%clk 0:00:05]} 25. Qf2 {[%clk 0:00:51]}  Kb8 {[%clk 0:00:02]} 26. Rhe1 {[%clk 0:00:48]}  Rc8 {[%clk 0:00:02]} 27. Rc1 {[%clk 0:00:48]}  Rc3 {[%clk 0:00:00]} 28. Qd2 {[%clk 0:00:44]} 1-0


[Site "https://www.chess.com"]

[Event "Titled Tuesday Blitz May 23 Early 2023"]
[White "Torres Hernandez, Leslie Carolin"]
[Black "Akylbek2021"]
[WhiteFideId "8400504"]
[WhiteElo "1920"]
[BlackElo "2472"]
[Result "1-0"]
[Round "05"]
[TimeControl "180+2"]
[Date "2023.05.23"]
[WhiteClock "0:00:24"]
[BlackClock "0:00:18"]

1. e4 {[%clk 0:02:58]}  c5 {[%clk 0:03:00]} 2. Nf3 {[%clk 0:02:55]}  Nc6 {[%clk 0:03:00]} 3. Bb5 {[%clk 0:02:53]}  d6 {[%clk 0:03:00]} 4. O-O {[%clk 0:02:48]}  Bd7 {[%clk 0:02:58]} 5. c3 {[%clk 0:02:47]}  a6 {[%clk 0:02:57]} 6. Ba4 {[%clk 0:02:43]}  Nf6 {[%clk 0:02:57]} 7. Re1 {[%clk 0:02:43]}  b5 {[%clk 0:02:54]} 8. Bc2 {[%clk 0:02:42]}  e5 {[%clk 0:02:52]} 9. d4 {[%clk 0:02:42]}  Be7 {[%clk 0:02:52]} 10. d5 {[%clk 0:02:27]}  Na5 {[%clk 0:02:51]} 11. Nbd2 {[%clk 0:02:26]}  O-O {[%clk 0:02:50]} 12. Nf1 {[%clk 0:02:27]}  b4 {[%clk 0:02:48]} 13. Ng3 {[%clk 0:02:23]}  g6 {[%clk 0:02:46]} 14. h4 {[%clk 0:02:18]}  h5 {[%clk 0:02:45]} 15. Bg5 {[%clk 0:02:17]}  Bg4 {[%clk 0:02:37]} 16. Qc1 {[%clk 0:02:03]}  Rb8 {[%clk 0:02:29]} 17. Bh6 {[%clk 0:01:59]}  Re8 {[%clk 0:02:29]} 18. Ng5 {[%clk 0:01:59]}  Nh7 {[%clk 0:02:23]} 19. Ba4 {[%clk 0:01:39]}  Bd7 {[%clk 0:02:20]} 20. Bd1 {[%clk 0:01:23]}  Nxg5 {[%clk 0:02:09]} 21. hxg5 {[%clk 0:01:22]}  h4 {[%clk 0:02:09]} 22. Nf1 {[%clk 0:01:19]}  bxc3 {[%clk 0:02:04]} 23. bxc3 {[%clk 0:01:16]}  Nc4 {[%clk 0:01:59]} 24. Be2 {[%clk 0:01:11]}  Bb5 {[%clk 0:01:55]} 25. a4 {[%clk 0:01:11]}  Na5 {[%clk 0:01:44]} 26. axb5 {[%clk 0:01:08]}  Nb3 {[%clk 0:01:44]} 27. Qe3 {[%clk 0:01:06]}  Nxa1 {[%clk 0:01:44]} 28. Rxa1 {[%clk 0:01:07]}  axb5 {[%clk 0:01:44]} 29. Nh2 {[%clk 0:01:00]}  b4 {[%clk 0:01:40]} 30. cxb4 {[%clk 0:00:59]}  Rxb4 {[%clk 0:01:41]} 31. Ng4 {[%clk 0:00:58]}  Qb8 {[%clk 0:01:21]} 32. Qf3 {[%clk 0:00:46]}  Rb3 {[%clk 0:01:15]} 33. Nf6+ {[%clk 0:00:26]}  Kh8 {[%clk 0:01:14]} 34. Qg4 {[%clk 0:00:24]}  Bxf6 {[%clk 0:00:38]} 35. gxf6 {[%clk 0:00:25]}  Rb1+ {[%clk 0:00:35]} 36. Rxb1 {[%clk 0:00:26]}  Qxb1+ {[%clk 0:00:36]} 37. Kh2 {[%clk 0:00:26]}  Qe1 {[%clk 0:00:18]} 38. Qxh4 {[%clk 0:00:23]}  Qxe2 {[%clk 0:00:19]} 39. Bg7+ {[%clk 0:00:23]}  Kg8 {[%clk 0:00:18]} 40. Qh8# {[%clk 0:00:24]} 1-0


[Site "https://www.chess.com"]